fUST/lending_fUST_20250702
["ID","MTS","AMOUNT","RATE_DAILY","PERIOD"]
[369050174,1751445064620,-495.84,0.00018082,2]
[369050175,1751445064630,-929.01,0.00018082,2]
[369050176,1751445064639,-505.94,0.00018082,2]
[369050177,1751445064649,-3667.71,0.00018082,2]
[369050178,1751445064659,-460.0,0.00018082,2]
[369050179,1751445064669,-765.47,0.00018082,2]
[369050180,1751445064678,-460.0,0.00018082,2]
[369050181,1751445064688,-1714.9,0.00018082,2]
[369050182,1751445064698,-1363.74,0.00018082,2]
[369050183,1751445064708,-460.0,0.00018082,2]
[369050184,1751445064718,-460.0,0.00018082,2]
[369050185,1751445064727,-460.0,0.00018082,2]
[369050186,1751445064737,-2367.93,0.00018082,2]
[369050187,1751445064746,-732.17,0.00018082,2]
[369050188,1751445064755,-460.0,0.00018082,2]
[369050189,1751445064765,-460.0,0.00018082,2]
[369050190,1751445064775,-849.76,0.00018082,2]
[369050191,1751445064784,-854.21,0.00018082,2]
[369050192,1751445064794,-721.5,0.00018082,2]
[369050193,1751445064803,-590.65606824,0.00018082,2]
[369050194,1751445064812,-460.0,0.00018082,2]
[369050195,1751445064822,-1041.46,0.00018082,2]
[369050196,1751445064831,-7003.26,0.00018082,2]
[369050197,1751445064840,-805.0,0.00018082,2]
[369050198,1751445064851,-460.0,0.00018082,2]
[369050199,1751445064860,-460.0,0.00018082,2]
[369050200,1751445064870,-460.0,0.00018082,2]
[369050201,1751445064880,-460.0,0.00018082,2]
[369050202,1751445064890,-2864.9618803,0.00018082,2]
[369050203,1751445064900,-2000.0,0.00018116,2]
[369050204,1751445064910,-2000.0,0.00018116,2]
[369050205,1751445064920,-1334.66301527,0.00018116,2]
[369050206,1751445064929,-3000.0,0.00018118,2]
[369050207,1751445064940,-405.0,0.0001813,2]
[369050208,1751445064949,-405.0,0.00018151,2]
[369050209,1751445064959,-405.0,0.00018327,2]
[369050210,1751445064968,-178.16484544,0.0001833,2]
[369050211,1751445064978,-864.72,0.0001833,2]
[369050212,1751445064987,-460.0,0.00018356,2]
[369050213,1751445064997,-182.553769,0.00018356,2]
[369050214,1751445065008,-498.25,0.00018356,2]
[369050215,1751445065018,-460.0,0.00018356,2]
[369050216,1751445065027,-460.0,0.00018356,2]
[369050217,1751445065037,-460.0,0.00018356,2]
[369050218,1751445065046,-151.0,0.00018356,2]
[369050219,1751445065056,-151.0,0.00018356,2]
[369050220,1751445065065,-151.0,0.00018356,2]
[369050221,1751445065074,-639.06,0.00018356,2]
[369050222,1751445065084,-151.0,0.00018356,2]
[369050223,1751445065093,-460.0,0.00018356,2]
[369050224,1751445065103,-151.0,0.00018356,2]
[369050225,1751445065112,-558.439528,0.00018356,2]
[369050226,1751445065122,-558.439528,0.00018356,2]
[369050227,1751445065131,-232.744682,0.00018356,2]
[369050228,1751445065140,-151.0,0.00018356,2]
[369050229,1751445065150,-232.744682,0.00018356,2]
[369050230,1751445065159,-151.0,0.00018356,2]
[369050231,1751445065168,-234.84485064,0.00018356,2]
[369050232,1751445065178,-460.0,0.00018356,2]
[369050233,1751445065187,-876.29,0.00018356,2]
[369050234,1751445065197,-642.52,0.00018356,2]
[369050235,1751445065206,-460.0,0.00018356,2]
[369050236,1751445065216,-460.0,0.00018356,2]
[369050237,1751445065227,-151.0,0.00018356,2]
[369050238,1751445065236,-460.0,0.00018356,2]
[369050239,1751445065245,-378.867334,0.00018356,2]
[369050240,1751445065254,-460.0,0.00018356,2]
[369050241,1751445065265,-378.867334,0.00018356,2]
[369050242,1751445065274,-460.0,0.00018356,2]
[369050243,1751445065283,-614.95,0.00018356,2]
[369050244,1751445065294,-460.0,0.00018356,2]
[369050245,1751445065303,-980.93,0.00018356,2]
[369050246,1751445065311,-751.48,0.00018356,2]
[369050247,1751445065320,-460.0,0.00018356,2]
[369050248,1751445065330,-731.405014,0.00018356,2]
[369050249,1751445065340,-460.0,0.00018356,2]
[369050250,1751445065350,-731.405014,0.00018356,2]
[369050251,1751445065359,-469.98,0.00018356,2]
[369050252,1751445065369,-460.0,0.00018356,2]
[369050253,1751445065381,-460.0,0.00018356,2]
[369050254,1751445065390,-705.341176,0.00018356,2]
[369050255,1751445065400,-497.99254408,0.00018356,2]
[369050256,1751445065410,-705.341176,0.00018356,2]
[369050257,1751445065419,-151.897169,0.00018356,2]
[369050258,1751445065428,-436.39309138,0.00018356,2]
[369050259,1751445065438,-460.0,0.00018356,2]
[369050260,1751445065447,-240.519655,0.00018356,2]
[369050261,1751445065456,-460.0,0.00018356,2]
[369050262,1751445065465,-471.973154,0.00018356,2]
[369050263,1751445065474,-471.973154,0.00018356,2]
[369050264,1751445065484,-460.0,0.00018356,2]
[369050265,1751445065494,-151.0,0.00018356,2]
[369050266,1751445065504,-460.0,0.00018356,2]
[369050267,1751445065514,-460.0,0.00018356,2]
[369050268,1751445065524,-151.0,0.00018356,2]
[369050269,1751445065534,-460.0,0.00018356,2]
[369050270,1751445065544,-476.11,0.00018356,2]
[369050271,1751445065553,-473.359982,0.00018356,2]
[369050272,1751445065562,-473.359982,0.00018356,2]
[369050273,1751445065572,-485.39895,0.00018356,2]
[369050274,1751445065582,-641.61,0.00018356,2]
[369050275,1751445065592,-485.39895,0.00018356,2]
[369050276,1751445065601,-1766.89,0.00018356,2]
[369050277,1751445065611,-460.0,0.00018356,2]
[369050278,1751445065621,-460.0,0.00018356,2]
[369050279,1751445065631,-826.15,0.00018356,2]
[369050280,1751445065640,-460.0,0.00018356,2]
[369050281,1751445065651,-1047.3,0.00018356,2]
[369050282,1751445065660,-466.83404663,0.00018356,2]
[369050283,1751445065670,-460.0,0.00018356,2]
[369050284,1751445065679,-460.0,0.00018356,2]
[369050285,1751445065688,-978.89,0.00018356,2]
[369050286,1751445065697,-496.66,0.00018356,2]
[369050287,1751445065707,-460.0,0.00018356,2]
[369050288,1751445065716,-2133.99,0.00018356,2]
[369050289,1751445065726,-1265.38,0.00018356,2]
[369050290,1751445065735,-727.25,0.00018356,2]
[369050291,1751445065745,-539.69,0.00018356,2]
[369050292,1751445065755,-1897.91,0.00018356,2]
[369050293,1751445065764,-577.38,0.00018356,2]
[369050294,1751445065773,-563.23,0.00018356,2]
[369050295,1751445065782,-2115.45,0.00018356,2]
[369050296,1751445065791,-516.01,0.00018356,2]
[369050297,1751445065801,-460.0,0.00018356,2]
[369050298,1751445065812,-557.01,0.00018356,2]
[369050299,1751445065822,-460.0,0.00018356,2]
[369050300,1751445065831,-460.0,0.00018356,2]
[369050301,1751445065842,-460.0,0.00018356,2]
[369050302,1751445065852,-3803.15,0.00018356,2]
[369050303,1751445065861,-460.0,0.00018356,2]
[369050304,1751445065871,-5111.31,0.00018356,2]
[369050305,1751445065881,-829.34,0.00018356,2]
[369050306,1751445065891,-780.82,0.00018356,2]
[369050307,1751445065901,-5072.13,0.00018356,2]
[369050308,1751445065910,-460.0,0.00018356,2]
[369050309,1751445065921,-1087.5,0.00018356,2]
[369050310,1751445065930,-460.0,0.00018356,2]
[369050311,1751445065940,-718.56,0.00018356,2]
[369050312,1751445065950,-1714.12,0.00018356,2]
[369050313,1751445065959,-1401.55,0.00018356,2]
[369050314,1751445066065,-460.0,0.00018356,2]
[369050315,1751445066074,-460.0,0.00018356,2]
[369050316,1751445066085,-460.0,0.00018356,2]
[369050317,1751445066093,-460.0,0.00018356,2]
[369050318,1751445066103,-669.72,0.00018356,2]
[369050319,1751445066112,-1605.73,0.00018356,2]
[369050320,1751445066122,-461.84,0.00018356,2]
[369050321,1751445066131,-890.25,0.00018356,2]
[369050322,1751445066140,-3517.17,0.00018356,2]
[369050323,1751445066150,-460.0,0.00018356,2]
[369050324,1751445066159,-759.61,0.00018356,2]
[369050325,1751445066169,-570.4,0.00018356,2]
[369050326,1751445066178,-882.98,0.00018356,2]
[369050327,1751445066187,-1815.57,0.00018356,2]
[369050328,1751445066197,-460.0,0.00018356,2]
[369050329,1751445066207,-1073.74,0.00018356,2]
[369050330,1751445066217,-460.0,0.00018356,2]
[369050331,1751445066227,-484.61,0.00018356,2]
[369050332,1751445066238,-460.0,0.00018356,2]
[369050333,1751445066248,-460.0,0.00018356,2]
[369050334,1751445066258,-460.0,0.00018356,2]
[369050335,1751445066268,-1129.77,0.00018356,2]
[369050336,1751445066278,-460.0,0.00018356,2]
[369050337,1751445066287,-460.0,0.00018356,2]
[369050338,1751445066297,-460.0,0.00018356,2]
[369050339,1751445066306,-854.14,0.00018356,2]
[369050340,1751445066316,-460.0,0.00018356,2]
[369050341,1751445066327,-1100.11,0.00018356,2]
[369050342,1751445066336,-667.52,0.00018356,2]
[369050343,1751445066346,-460.0,0.00018356,2]
[369050344,1751445066356,-3038.86,0.00018356,2]
[369050345,1751445066365,-460.0,0.00018356,2]
[369050346,1751445066376,-477.02,0.00018356,2]
[369050347,1751445066386,-460.0,0.00018356,2]
[369050348,1751445066397,-1028.48,0.00018356,2]
[369050349,1751445066408,-460.0,0.00018356,2]
[369050350,1751445066419,-460.0,0.00018356,2]
[369050351,1751445066428,-460.0,0.00018356,2]
[369050352,1751445066439,-151.0,0.00018356,2]
[369050353,1751445066449,-1809.02,0.00018356,2]
[369050354,1751445066459,-364.24198411,0.00018356,2]
[369050355,1751445066468,-460.0,0.00018356,2]
[369050356,1751445066477,-764.79,0.00018356,2]
[369050357,1751445066486,-637.32,0.00018356,2]
[369050358,1751445066496,-460.0,0.00018356,2]
[369050359,1751445066506,-549.97,0.00018356,2]
[369050360,1751445066516,-460.0,0.00018356,2]
[369050361,1751445066525,-3087.48,0.00018356,2]
[369050362,1751445066535,-460.0,0.00018356,2]
[369050363,1751445066544,-460.0,0.00018356,2]
[369050364,1751445066554,-460.0,0.00018356,2]
[369050365,1751445066563,-801.86,0.00018356,2]
[369050366,1751445066573,-495.84,0.00018356,2]
[369050367,1751445066583,-929.01,0.00018356,2]
[369050368,1751445066594,-505.94,0.00018356,2]
[369050369,1751445066603,-3667.71,0.00018356,2]
[369050370,1751445066613,-460.0,0.00018356,2]
[369050371,1751445066622,-765.47,0.00018356,2]
[369050372,1751445066632,-460.0,0.00018356,2]
[369050373,1751445066642,-1714.9,0.00018356,2]
[369050374,1751445066651,-1363.74,0.00018356,2]
[369050375,1751445066660,-481.25232228,0.00018356,2]
[369050376,1751445066670,-460.0,0.00018356,2]
[369050377,1751445066680,-2367.93,0.00018356,2]
[369050378,1751445066689,-732.17,0.00018356,2]
[369050379,1751445066698,-460.0,0.00018356,2]
[369050380,1751445066709,-460.0,0.00018356,2]
[369050381,1751445066718,-849.76,0.00018356,2]
[369050382,1751445066727,-854.21,0.00018356,2]
[369050383,1751445066737,-721.5,0.00018356,2]
[369050384,1751445066747,-460.0,0.00018356,2]
[369050385,1751445066756,-1041.46,0.00018356,2]
[369050386,1751445066765,-151.0,0.00018356,2]
[369050387,1751445066775,-7003.26,0.00018356,2]
[369050388,1751445066786,-805.0,0.00018356,2]
[369050389,1751445066796,-464.73919868,0.00018356,2]
[369050390,1751445066806,-306.666669,0.00018356,2]
[369050391,1751445066816,-460.0,0.00018356,2]
[369050392,1751445066827,-460.0,0.00018356,2]
[369050393,1751445066836,-306.666669,0.00018356,2]
[369050394,1751445066846,-460.0,0.00018356,2]
[369050395,1751445066855,-1000.0,0.00018416,2]
[369050396,1751445066865,-405.0,0.00018436,2]
[369050397,1751445066874,-405.0,0.0001854,2]
[369050398,1751445066884,-5000.0,0.0001862,2]
[369050399,1751445066894,-182.553769,0.0001863,2]
[369050400,1751445066903,-151.0,0.0001863,2]
[369050401,1751445066913,-239.905057,0.0001863,2]
[369050402,1751445066923,-498.25,0.0001863,2]
[369050403,1751445066933,-151.0,0.0001863,2]
[369050404,1751445066943,-460.0,0.0001863,2]
[369050405,1751445066952,-460.0,0.0001863,2]
[369050406,1751445066961,-151.0,0.0001863,2]
[369050407,1751445066971,-460.0,0.0001863,2]
[369050408,1751445066980,-639.06,0.0001863,2]
[369050409,1751445066989,-460.0,0.0001863,2]
[369050410,1751445066999,-460.0,0.0001863,2]
[369050411,1751445067010,-876.29,0.0001863,2]
[369050412,1751445067020,-642.52,0.0001863,2]
[369050413,1751445067029,-460.0,0.0001863,2]
[369050414,1751445067038,-385.62762499,0.0001863,2]
[369050415,1751445067048,-460.0,0.0001863,2]
[369050416,1751445067057,-325.49976988,0.0001863,2]
[369050417,1751445067067,-460.0,0.0001863,2]
[369050418,1751445067076,-614.95,0.0001863,2]
[369050419,1751445067085,-460.0,0.0001863,2]
[369050420,1751445067095,-980.93,0.0001863,2]
[369050421,1751445067104,-751.48,0.0001863,2]
[369050422,1751445067114,-460.0,0.0001863,2]
[369050423,1751445067123,-460.0,0.0001863,2]
[369050424,1751445067132,-469.98,0.0001863,2]
[369050425,1751445067142,-460.0,0.0001863,2]
[369050426,1751445067151,-460.0,0.0001863,2]
[369050427,1751445067160,-460.0,0.0001863,2]
[369050428,1751445067170,-460.0,0.0001863,2]
[369050429,1751445067179,-460.0,0.0001863,2]
[369050430,1751445067188,-460.0,0.0001863,2]
[369050431,1751445067199,-460.0,0.0001863,2]
[369050432,1751445067208,-460.0,0.0001863,2]
[369050433,1751445067218,-476.11,0.0001863,2]
[369050434,1751445067227,-641.61,0.0001863,2]
[369050435,1751445067236,-1766.89,0.0001863,2]
[369050436,1751445067246,-460.0,0.0001863,2]
[369050437,1751445067255,-460.0,0.0001863,2]
[369050438,1751445067264,-826.15,0.0001863,2]
[369050439,1751445067274,-460.0,0.0001863,2]
[369050440,1751445067283,-1047.3,0.0001863,2]
[369050441,1751445067293,-460.0,0.0001863,2]
[369050442,1751445067302,-460.0,0.0001863,2]
[369050443,1751445067312,-978.89,0.0001863,2]
[369050444,1751445067321,-496.66,0.0001863,2]
[369050445,1751445067330,-460.0,0.0001863,2]
[369050446,1751445067339,-2133.99,0.0001863,2]
[369050447,1751445067350,-1265.38,0.0001863,2]
[369050448,1751445067359,-727.25,0.0001863,2]
[369050449,1751445067369,-539.69,0.0001863,2]
[369050450,1751445067382,-1897.91,0.0001863,2]
[369050451,1751445067392,-577.38,0.0001863,2]
[369050452,1751445067401,-563.23,0.0001863,2]
[369050453,1751445067411,-2115.45,0.0001863,2]
[369050454,1751445067420,-516.01,0.0001863,2]
[369050455,1751445067429,-460.0,0.0001863,2]
[369050456,1751445067439,-557.01,0.0001863,2]
[369050457,1751445067449,-581.97035287,0.0001863,2]
[369050458,1751445067458,-460.0,0.0001863,2]
[369050459,1751445067468,-3803.15,0.0001863,2]
[369050460,1751445067477,-480.37745422,0.0001863,2]
[369050461,1751445067487,-5111.31,0.0001863,2]
[369050462,1751445067495,-829.34,0.0001863,2]
[369050463,1751445067505,-780.82,0.0001863,2]
[369050464,1751445067515,-5072.13,0.0001863,2]
[369050465,1751445067524,-460.0,0.0001863,2]
[369050466,1751445067534,-1087.5,0.0001863,2]
[369050467,1751445067544,-460.0,0.0001863,2]
[369050468,1751445067553,-718.56,0.0001863,2]
[369050469,1751445067563,-1714.12,0.0001863,2]
[369050470,1751445067572,-1401.55,0.0001863,2]
[369050471,1751445067582,-460.0,0.0001863,2]
[369050472,1751445067591,-152.813717,0.0001863,2]
[369050473,1751445067689,-460.0,0.0001863,2]
[369050474,1751445067700,-669.72,0.0001863,2]
[369050475,1751445067711,-1605.73,0.0001863,2]
[369050476,1751445067721,-461.84,0.0001863,2]
[369050477,1751445067731,-890.25,0.0001863,2]
[369050478,1751445067740,-3517.17,0.0001863,2]
[369050479,1751445067750,-460.0,0.0001863,2]
[369050480,1751445067759,-759.61,0.0001863,2]
[369050481,1751445067768,-570.4,0.0001863,2]
[369050482,1751445067777,-882.98,0.0001863,2]
[369050483,1751445067787,-1815.57,0.0001863,2]
[369050484,1751445067796,-460.0,0.0001863,2]
[369050485,1751445067806,-151.0,0.0001863,2]
[369050486,1751445067816,-1073.74,0.0001863,2]
[369050487,1751445067825,-460.0,0.0001863,2]
[369050488,1751445067835,-484.61,0.0001863,2]
[369050489,1751445067845,-460.0,0.0001863,2]
[369050490,1751445067855,-460.0,0.0001863,2]
[369050491,1751445067865,-460.0,0.0001863,2]
[369050492,1751445067876,-1129.77,0.0001863,2]
[369050493,1751445067886,-460.0,0.0001863,2]
[369050494,1751445067908,-460.0,0.0001863,2]
[369050495,1751445067921,-460.0,0.0001863,2]
[369050496,1751445067931,-854.14,0.0001863,2]
[369050497,1751445067940,-460.0,0.0001863,2]
[369050498,1751445067950,-1100.11,0.0001863,2]
[369050499,1751445067959,-667.52,0.0001863,2]
[369050500,1751445067969,-1421.646598,0.0001863,2]
[369050501,1751445067979,-264.50592269,0.0001863,2]
[369050502,1751445067988,-1421.646598,0.0001863,2]
[369050503,1751445067998,-3038.86,0.0001863,2]
[369050504,1751445068008,-446.92451261,0.0001863,2]
[369050505,1751445068017,-477.02,0.0001863,2]
[369050506,1751445068038,-460.0,0.0001863,2]
[369050507,1751445068050,-460.0,0.0001863,2]
[369050508,1751445068061,-1028.48,0.0001863,2]
[369050509,1751445068071,-460.0,0.0001863,2]
[369050510,1751445068082,-1809.02,0.0001863,2]
[369050511,1751445068092,-460.0,0.0001863,2]
[369050512,1751445068102,-764.79,0.0001863,2]
[369050513,1751445068113,-637.32,0.0001863,2]
[369050514,1751445068123,-460.0,0.0001863,2]
[369050515,1751445068133,-549.97,0.0001863,2]
[369050516,1751445068144,-487.58498581,0.0001863,2]
[369050517,1751445068154,-3087.48,0.0001863,2]
[369050518,1751445068164,-460.0,0.0001863,2]
[369050519,1751445068174,-460.0,0.0001863,2]
[369050520,1751445068184,-460.0,0.0001863,2]
[369050521,1751445068194,-801.86,0.0001863,2]
[369050522,1751445068205,-495.84,0.0001863,2]
[369050523,1751445068215,-929.01,0.0001863,2]
[369050524,1751445068225,-505.94,0.0001863,2]
[369050525,1751445068234,-3667.71,0.0001863,2]
[369050526,1751445068245,-460.0,0.0001863,2]
[369050527,1751445068259,-765.47,0.0001863,2]
[369050528,1751445068270,-460.0,0.0001863,2]
[369050529,1751445068280,-1714.9,0.0001863,2]
[369050530,1751445068290,-1363.74,0.0001863,2]
[369050531,1751445068300,-460.0,0.0001863,2]
[369050532,1751445068309,-2367.93,0.0001863,2]
[369050533,1751445068319,-732.17,0.0001863,2]
[369050534,1751445068329,-460.0,0.0001863,2]
[369050535,1751445068339,-460.0,0.0001863,2]
[369050536,1751445068349,-849.76,0.0001863,2]
[369050537,1751445068359,-854.21,0.0001863,2]
[369050538,1751445068368,-721.5,0.0001863,2]
[369050539,1751445068380,-460.0,0.0001863,2]
[369050540,1751445068390,-1041.46,0.0001863,2]
[369050541,1751445068399,-7003.26,0.0001863,2]
[369050542,1751445068409,-805.0,0.0001863,2]
[369050543,1751445068419,-460.0,0.0001863,2]
[369050544,1751445068429,-441.53138256,0.0001863,2]
[369050545,1751445068438,-460.0,0.0001863,2]
[369050546,1751445068448,-1257.2143559,0.00018664,2]
[369050547,1751445068457,-2500.0,0.00018664,2]
[369050548,1751445068467,-622.83559072,0.00018798,2]
[369050549,1751445068477,-3372.74566059,0.000189,2]
[369050550,1751445068486,-182.553769,0.00018904,2]
[369050551,1751445068496,-498.25,0.00018904,2]
[369050552,1751445068506,-460.0,0.00018904,2]
[369050553,1751445068515,-460.0,0.00018904,2]
[369050554,1751445068525,-151.0,0.00018904,2]
[369050555,1751445068534,-151.0,0.00018904,2]
[369050556,1751445068544,-460.0,0.00018904,2]
[369050557,1751445068553,-273.177028,0.00018904,2]
[369050558,1751445068562,-273.177028,0.00018904,2]
[369050559,1751445068571,-336.306551,0.00018904,2]
[369050560,1751445068581,-336.306551,0.00018904,2]
[369050561,1751445068591,-639.06,0.00018904,2]
[369050562,1751445068600,-460.0,0.00018904,2]
[369050563,1751445068609,-460.0,0.00018904,2]
[369050564,1751445068620,-876.29,0.00018904,2]
[369050565,1751445068629,-642.52,0.00018904,2]
[369050566,1751445068639,-460.0,0.00018904,2]
[369050567,1751445068648,-460.0,0.00018904,2]
[369050568,1751445068657,-151.0,0.00018904,2]
[369050569,1751445068667,-151.0,0.00018904,2]
[369050570,1751445068676,-460.0,0.00018904,2]
[369050571,1751445068686,-614.95,0.00018904,2]
[369050572,1751445068696,-980.93,0.00018904,2]
[369050573,1751445068705,-751.48,0.00018904,2]
[369050574,1751445068716,-472.36349383,0.00018904,2]
[369050575,1751445068725,-460.0,0.00018904,2]
[369050576,1751445068738,-469.98,0.00018904,2]
[369050577,1751445068757,-460.0,0.00018904,2]
[369050578,1751445068770,-513.79349635,0.00018904,2]
[369050579,1751445068781,-460.0,0.00018904,2]
[369050580,1751445068790,-460.0,0.00018904,2]
[369050581,1751445068800,-460.0,0.00018904,2]
[369050582,1751445068810,-151.0,0.00018904,2]
[369050583,1751445068821,-460.0,0.00018904,2]
[369050584,1751445068830,-460.0,0.00018904,2]
[369050585,1751445068839,-460.0,0.00018904,2]
[369050586,1751445068850,-476.11,0.00018904,2]
[369050587,1751445068859,-485.39895,0.00018904,2]
[369050588,1751445068869,-641.61,0.00018904,2]
[369050589,1751445068879,-485.39895,0.00018904,2]
[369050590,1751445068889,-151.0,0.00018904,2]
[369050591,1751445068898,-1766.89,0.00018904,2]
[369050592,1751445068908,-212.325124,0.00018904,2]
[369050593,1751445068917,-460.0,0.00018904,2]
[369050594,1751445068927,-460.0,0.00018904,2]
[369050595,1751445068937,-826.15,0.00018904,2]
[369050596,1751445068946,-460.0,0.00018904,2]
[369050597,1751445068956,-1047.3,0.00018904,2]
[369050598,1751445068968,-216.78530936,0.00018904,2]
[369050599,1751445068978,-475.63543935,0.00018904,2]
[369050600,1751445068987,-978.89,0.00018904,2]
[369050601,1751445068996,-496.66,0.00018904,2]
[369050602,1751445069006,-460.0,0.00018904,2]
[369050603,1751445069016,-2133.99,0.00018904,2]
[369050604,1751445069027,-1265.38,0.00018904,2]
[369050605,1751445069036,-727.25,0.00018904,2]
[369050606,1751445069046,-539.69,0.00018904,2]
[369050607,1751445069055,-1897.91,0.00018904,2]
[369050608,1751445069065,-577.38,0.00018904,2]
[369050609,1751445069075,-563.23,0.00018904,2]
[369050610,1751445069085,-2115.45,0.00018904,2]
[369050611,1751445069095,-516.01,0.00018904,2]
[369050612,1751445069109,-460.0,0.00018904,2]
[369050613,1751445069119,-557.01,0.00018904,2]
[369050614,1751445069129,-460.0,0.00018904,2]
[369050615,1751445069139,-3803.15,0.00018904,2]
[369050616,1751445069149,-5111.31,0.00018904,2]
[369050617,1751445069159,-780.82,0.00018904,2]
[369050618,1751445069169,-829.34,0.00018904,2]
[369050619,1751445069178,-5072.13,0.00018904,2]
[369050620,1751445069320,-460.0,0.00018904,2]
[369050621,1751445069331,-1087.5,0.00018904,2]
[369050622,1751445069340,-590.94002262,0.00018904,2]
[369050623,1751445069350,-718.56,0.00018904,2]
[369050624,1751445069359,-1714.12,0.00018904,2]
[369050625,1751445069368,-1401.55,0.00018904,2]
[369050626,1751445069380,-399.28335597,0.00018904,2]
[369050627,1751445069390,-460.0,0.00018904,2]
[369050628,1751445069399,-669.72,0.00018904,2]
[369050629,1751445069409,-1605.73,0.00018904,2]
[369050630,1751445069418,-461.84,0.00018904,2]
[369050631,1751445069427,-890.25,0.00018904,2]
[369050632,1751445069436,-3517.17,0.00018904,2]
[369050633,1751445069446,-460.0,0.00018904,2]
[369050634,1751445069456,-759.61,0.00018904,2]
[369050635,1751445069465,-570.4,0.00018904,2]
[369050636,1751445069474,-882.98,0.00018904,2]
[369050637,1751445069483,-1815.57,0.00018904,2]
[369050638,1751445069492,-460.0,0.00018904,2]
[369050639,1751445069501,-1073.74,0.00018904,2]
[369050640,1751445069511,-484.61,0.00018904,2]
[369050641,1751445069520,-460.0,0.00018904,2]
[369050642,1751445069530,-460.0,0.00018904,2]
[369050643,1751445069539,-460.0,0.00018904,2]
[369050644,1751445069550,-460.0,0.00018904,2]
[369050645,1751445069559,-1129.77,0.00018904,2]
[369050646,1751445069568,-460.0,0.00018904,2]
[369050647,1751445069578,-230.90842759,0.00018904,2]
[369050648,1751445069587,-854.14,0.00018904,2]
[369050649,1751445069597,-1100.11,0.00018904,2]
[369050650,1751445069607,-667.52,0.00018904,2]
[369050651,1751445069616,-460.0,0.00018904,2]
[369050652,1751445069626,-3038.86,0.00018904,2]
[369050653,1751445069635,-477.02,0.00018904,2]
[369050654,1751445069644,-460.0,0.00018904,2]
[369050655,1751445069654,-460.0,0.00018904,2]
[369050656,1751445069664,-1028.48,0.00018904,2]
[369050657,1751445069673,-460.0,0.00018904,2]
[369050658,1751445069682,-151.0,0.00018904,2]
[369050659,1751445069692,-1809.02,0.00018904,2]
[369050660,1751445069701,-764.79,0.00018904,2]
[369050661,1751445069711,-460.0,0.00018904,2]
[369050662,1751445069720,-637.32,0.00018904,2]
[369050663,1751445069730,-460.0,0.00018904,2]
[369050664,1751445069739,-549.97,0.00018904,2]
[369050665,1751445069749,-3087.48,0.00018904,2]
[369050666,1751445069759,-324.14623544,0.00018904,2]
[369050667,1751445069768,-593.85686397,0.00018904,2]
[369050668,1751445069778,-460.0,0.00018904,2]
[369050669,1751445069787,-801.86,0.00018904,2]
[369050670,1751445069797,-495.84,0.00018904,2]
[369050671,1751445069807,-505.94,0.00018904,2]
[369050672,1751445069816,-929.01,0.00018904,2]
[369050673,1751445069826,-3667.71,0.00018904,2]